[Event "MČR v bleskovém šachu družstev 2019"]
[Site "Teplice, Czech Republic"]
[Date "2019.09.14"]
[Round "12.10"]
[White "Sott, Pavel"]
[Black "Sokolov, Alexander"]
[Result "0-1"]
[TimeControl "3 mim. + 2 s"]
[BlackTitle "FM"]
[WhiteFideId "311910"]
[BlackFideId "4119177"]
[WhiteElo "2167"]
[BlackElo "2417"]

1. e4 {[%clk 00:03:02]} {[%emt 00:00:01]} c5 {[%clk 00:03:03]} {[%emt
00:00:01]} 2. Nc3 {[%clk 00:03:03]} {[%emt 00:00:01]} d6 {[%clk 00:03:04]}
{[%emt 00:00:02]} 3. Nge2 {[%clk 00:03:03]} {[%emt 00:00:01]} Nc6 {[%clk
00:03:03]} {[%emt 00:00:02]} 4. d4 {[%clk 00:03:04]} {[%emt 00:00:01]} cxd4
{[%clk 00:03:03]} {[%emt 00:00:03]} 5. Nxd4 {[%clk 00:03:05]} g6 {[%clk
00:03:04]} {[%emt 00:00:01]} 6. Be3 {[%clk 00:03:06]} {[%emt 00:00:01]} Bg7
{[%clk 00:03:05]} 7. Qd2 {[%clk 00:03:06]} {[%emt 00:00:01]} Nf6 {[%clk
00:03:06]} {[%emt 00:00:02]} 8. Bc4 {[%clk 00:03:07]} {[%emt 00:00:01]} O-O
{[%clk 00:03:06]} {[%emt 00:00:02]} 9. Bb3 {[%clk 00:03:07]} {[%emt 00:00:02]}
Ng4 {[%clk 00:03:06]} {[%emt 00:00:02]} 10. Nxc6 {[%clk 00:02:56]} {[%emt
00:00:13]} bxc6 {[%clk 00:03:06]} {[%emt 00:00:02]} 11. Bd4 {[%clk 00:02:54]}
{[%emt 00:00:04]} Bh6 {[%clk 00:02:49]} {[%emt 00:00:20]} 12. Qe2 {[%clk
00:02:13]} {[%emt 00:00:42]} c5 {[%clk 00:02:44]} {[%emt 00:00:07]} 13. h3
{[%clk 00:02:03]} {[%emt 00:00:13]} cxd4 {[%clk 00:02:30]} {[%emt 00:00:16]} 14.
hxg4 {[%clk 00:02:03]} {[%emt 00:00:02]} dxc3 {[%clk 00:02:22]} {[%emt
00:00:10]} 15. Rxh6 {[%clk 00:02:00]} {[%emt 00:00:04]} cxb2 {[%clk 00:02:22]}
{[%emt 00:00:02]} 16. Rb1 {[%clk 00:01:57]} {[%emt 00:00:05]} Qa5+ {[%clk
00:02:21]} {[%emt 00:00:02]} 17. Qd2 {[%clk 00:01:47]} {[%emt 00:00:12]} Qxd2+
{[%clk 00:02:14]} {[%emt 00:00:09]} 18. Kxd2 {[%clk 00:01:48]} {[%emt
00:00:02]} Bxg4 {[%clk 00:02:08]} {[%emt 00:00:08]} 19. Rh4 {[%clk 00:01:42]}
{[%emt 00:00:08]} Bd7 {[%clk 00:01:59]} {[%emt 00:00:11]} 20. Rxb2 {[%clk
00:01:40]} {[%emt 00:00:03]} Kg7 {[%clk 00:01:59]} {[%emt 00:00:01]} 21. Rb1
{[%clk 00:01:37]} {[%emt 00:00:05]} a5 {[%clk 00:01:59]} {[%emt 00:00:03]} 22.
Rhh1 {[%clk 00:01:31]} {[%emt 00:00:08]} e6 {[%clk 00:01:49]} {[%emt 00:00:12]}
23. Bc4 {[%clk 00:01:30]} {[%emt 00:00:03]} Bc6 {[%clk 00:01:49]} {[%emt
00:00:01]} 24. f3 {[%clk 00:01:28]} {[%emt 00:00:04]} Rfb8 {[%clk 00:01:48]}
{[%emt 00:00:03]} 25. Ke3 {[%clk 00:01:24]} {[%emt 00:00:07]} h5 {[%clk
00:01:48]} {[%emt 00:00:02]} 26. Rhd1 {[%clk 00:01:21]} {[%emt 00:00:05]} Rxb1
{[%clk 00:01:34]} {[%emt 00:00:15]} 27. Rxb1 {[%clk 00:01:22]} {[%emt
00:00:02]} d5 {[%clk 00:01:36]} {[%emt 00:00:01]} 28. exd5 {[%clk 00:01:19]}
{[%emt 00:00:05]} exd5 {[%clk 00:01:36]} {[%emt 00:00:01]} 29. Bd3 {[%clk
00:01:18]} {[%emt 00:00:03]} Rc8 {[%clk 00:01:16]} {[%emt 00:00:22]} 30. Rb6
{[%clk 00:01:16]} {[%emt 00:00:04]} Ba4 {[%clk 00:01:17]} {[%emt 00:00:01]} 31.
Kd2 {[%clk 00:01:03]} {[%emt 00:00:15]} h4 {[%clk 00:01:13]} {[%emt 00:00:06]}
32. c3 {[%clk 00:00:47]} {[%emt 00:00:19]} Rc6 {[%clk 00:01:09]} {[%emt
00:00:06]} 33. Rb8 {[%clk 00:00:42]} {[%emt 00:00:07]} Kf6 {[%clk 00:01:07]}
{[%emt 00:00:03]} 34. Ra8 {[%clk 00:00:40]} {[%emt 00:00:04]} Rc5 {[%clk
00:01:09]} {[%emt 00:00:01]} 35. Rh8 {[%clk 00:00:40]} {[%emt 00:00:01]} Kg5
{[%clk 00:01:06]} {[%emt 00:00:05]} 36. Rf8 {[%clk 00:00:36]} {[%emt 00:00:07]}
f5 {[%clk 00:01:02]} {[%emt 00:00:06]} 37. Rh8 {[%clk 00:00:35]} {[%emt
00:00:03]} Bb5 {[%clk 00:00:59]} {[%emt 00:00:05]} 38. Bc2 {[%clk 00:00:20]}
{[%emt 00:00:17]} Bf1 {[%clk 00:00:58]} {[%emt 00:00:02]} 39. Ke1 {[%clk
00:00:03]} {[%emt 00:00:19]} Bxg2 {[%emt 00:00:03]} 40. Kf2 Bxf3 {[%clk
00:00:52]} {[%emt 00:00:08]} 41. Bxf5 {[%clk 00:00:00]} {[%emt 00:00:06]} Kxf5
{[%clk 00:00:52]} 42. Kxf3 {[%clk 00:00:00]} Rxc3+ {[%emt 00:00:01]} 43. Ke2
Kg4 {[%clk 00:00:52]} {[%emt 00:00:01]} 44. Kd2 0-1

[Event "MČR v bleskovém šachu družstev 2019"]
[Site "Teplice, Czech Republic"]
[Date "2019.09.14"]
[Round "12.11"]
[White "Dolezal, Radoslav"]
[Black "Kupka, Frantisek"]
[Result "1-0"]
[TimeControl "3 mim. + 2 s"]
[WhiteTitle "IM"]
[WhiteFideId "304735"]
[BlackFideId "309540"]
[WhiteElo "2359"]
[BlackElo "2034"]

1. d4 {[%clk 00:03:01]} {[%emt 00:00:02]} Nf6 {[%clk 00:03:03]} {[%emt
00:00:02]} 2. Bg5 {[%clk 00:03:02]} Ne4 {[%clk 00:03:03]} {[%emt 00:00:02]} 3.
Bf4 {[%clk 00:03:04]} d5 {[%clk 00:03:03]} {[%emt 00:00:02]} 4. f3 {[%clk
00:03:05]} {[%emt 00:00:01]} Nd6 {[%clk 00:03:02]} {[%emt 00:00:02]} 5. Nc3
{[%clk 00:03:05]} {[%emt 00:00:01]} c6 {[%clk 00:02:58]} {[%emt 00:00:06]} 6.
e4 {[%clk 00:03:05]} {[%emt 00:00:02]} e6 {[%clk 00:02:51]} {[%emt 00:00:10]} 7.
Bd3 {[%clk 00:02:58]} {[%emt 00:00:08]} Be7 {[%clk 00:02:49]} {[%emt 00:00:03]}
8. Nge2 {[%clk 00:02:58]} {[%emt 00:00:02]} O-O {[%clk 00:02:43]} {[%emt
00:00:08]} 9. O-O {[%clk 00:02:57]} {[%emt 00:00:04]} Bg5 {[%clk 00:02:31]}
{[%emt 00:00:14]} 10. Qc1 {[%clk 00:02:28]} {[%emt 00:00:32]} Bxf4 {[%clk
00:02:28]} {[%emt 00:00:05]} 11. Qxf4 {[%clk 00:02:29]} {[%emt 00:00:01]} Qe7
{[%clk 00:02:21]} {[%emt 00:00:08]} 12. Rae1 {[%clk 00:02:24]} {[%emt
00:00:07]} Nd7 {[%clk 00:02:12]} {[%emt 00:00:12]} 13. Ng3 {[%clk 00:02:18]}
{[%emt 00:00:07]} e5 {[%clk 00:01:31]} {[%emt 00:00:44]} 14. dxe5 {[%clk
00:02:07]} {[%emt 00:00:13]} Qxe5 {[%clk 00:01:30]} {[%emt 00:00:03]} 15. Qxe5
{[%clk 00:02:02]} {[%emt 00:00:07]} Nxe5 {[%clk 00:01:31]} {[%emt 00:00:01]} 16.
exd5 {[%clk 00:02:03]} {[%emt 00:00:01]} Nxd3 {[%clk 00:01:30]} {[%emt
00:00:02]} 17. cxd3 {[%clk 00:02:04]} {[%emt 00:00:01]} c5 {[%clk 00:01:06]}
{[%emt 00:00:26]} 18. Re7 {[%clk 00:01:57]} {[%emt 00:00:09]} b6 {[%clk
00:00:58]} {[%emt 00:00:11]} 19. Nce4 {[%clk 00:01:27]} {[%emt 00:00:31]} Nf5
{[%clk 00:00:45]} {[%emt 00:00:14]} 20. Nxf5 {[%clk 00:01:09]} {[%emt
00:00:20]} Bxf5 {[%clk 00:00:46]} {[%emt 00:00:01]} 21. Rd1 {[%clk 00:00:48]}
{[%emt 00:00:23]} Rfd8 {[%clk 00:00:41]} {[%emt 00:00:08]} 22. Nc3 {[%clk
00:00:49]} {[%emt 00:00:01]} Kf8 {[%clk 00:00:37]} {[%emt 00:00:05]} 23. Rc7
{[%clk 00:00:48]} {[%emt 00:00:02]} Rd7 {[%clk 00:00:32]} {[%emt 00:00:07]} 24.
Rxd7 {[%clk 00:00:48]} {[%emt 00:00:03]} Bxd7 {[%clk 00:00:33]} {[%emt
00:00:01]} 25. Kf2 {[%clk 00:00:49]} Re8 {[%clk 00:00:24]} {[%emt 00:00:11]} 26.
b3 {[%clk 00:00:43]} {[%emt 00:00:08]} Re5 {[%clk 00:00:24]} {[%emt 00:00:02]}
27. d4 {[%clk 00:00:43]} {[%emt 00:00:02]} cxd4 {[%clk 00:00:21]} {[%emt
00:00:05]} 28. Rxd4 {[%clk 00:00:44]} f5 {[%clk 00:00:18]} {[%emt 00:00:05]} 29.
f4 {[%clk 00:00:36]} {[%emt 00:00:10]} Re8 {[%clk 00:00:18]} {[%emt 00:00:02]}
30. d6 {[%clk 00:00:22]} {[%emt 00:00:15]} Rc8 {[%clk 00:00:17]} {[%emt
00:00:04]} 31. Rd3 {[%clk 00:00:17]} {[%emt 00:00:07]} Kf7 {[%clk 00:00:16]}
{[%emt 00:00:03]} 32. Re3 {[%clk 00:00:10]} {[%emt 00:00:09]} Re8 {[%clk
00:00:15]} {[%emt 00:00:03]} 33. Nd5 {[%clk 00:00:04]} {[%emt 00:00:08]} Rxe3
{[%clk 00:00:12]} {[%emt 00:00:06]} 34. Nxe3 {[%clk 00:00:05]} Ke6 {[%clk
00:00:12]} {[%emt 00:00:02]} 35. Nc4 {[%clk 00:00:07]} b5 {[%clk 00:00:10]}
{[%emt 00:00:03]} 36. Ne5 {[%clk 00:00:08]} {[%emt 00:00:01]} Kxd6 {[%clk
00:00:09]} {[%emt 00:00:03]} 37. Ke3 {[%clk 00:00:09]} {[%emt 00:00:01]} Be6
{[%clk 00:00:10]} {[%emt 00:00:01]} 38. Kd4 {[%clk 00:00:10]} {[%emt 00:00:01]}
Bd5 {[%clk 00:00:07]} {[%emt 00:00:05]} 39. g3 {[%clk 00:00:11]} {[%emt
00:00:01]} a6 {[%clk 00:00:07]} {[%emt 00:00:03]} 40. Nd3 {[%clk 00:00:11]}
{[%emt 00:00:01]} Bb7 {[%clk 00:00:07]} {[%emt 00:00:02]} 41. b4 {[%clk
00:00:11]} {[%emt 00:00:02]} Bd5 {[%clk 00:00:06]} {[%emt 00:00:02]} 42. a3
{[%clk 00:00:13]} Bb7 {[%clk 00:00:08]} 43. Nc5 {[%clk 00:00:13]} {[%emt
00:00:02]} Bc8 {[%clk 00:00:09]} 44. a4 {[%clk 00:00:09]} {[%emt 00:00:06]}
bxa4 {[%clk 00:00:10]} {[%emt 00:00:02]} 45. Nxa4 {[%clk 00:00:11]} {[%emt
00:00:01]} Bd7 {[%clk 00:00:09]} {[%emt 00:00:02]} 46. Nb2 {[%clk 00:00:08]}
{[%emt 00:00:04]} Bb5 {[%clk 00:00:10]} {[%emt 00:00:02]} 47. Nd1 {[%clk
00:00:10]} Bf1 {[%clk 00:00:09]} {[%emt 00:00:03]} 48. Ne3 {[%clk 00:00:10]}
{[%emt 00:00:02]} Bh3 {[%clk 00:00:07]} {[%emt 00:00:03]} 49. Nc4+ {[%clk
00:00:09]} {[%emt 00:00:03]} Kc6 {[%clk 00:00:06]} {[%emt 00:00:03]} 50. Ne5+
{[%clk 00:00:08]} {[%emt 00:00:03]} Kb5 {[%clk 00:00:06]} {[%emt 00:00:02]} 51.
Kc3 {[%clk 00:00:09]} Bf1 {[%clk 00:00:05]} {[%emt 00:00:03]} 52. Nf3 {[%clk
00:00:08]} {[%emt 00:00:03]} Bg2 {[%clk 00:00:04]} {[%emt 00:00:03]} 53. Nd4+
{[%clk 00:00:09]} {[%emt 00:00:02]} Kb6 {[%clk 00:00:04]} {[%emt 00:00:02]} 54.
Nxf5 {[%clk 00:00:10]} g6 {[%clk 00:00:05]} {[%emt 00:00:02]} 55. Nd6 {[%clk
00:00:10]} {[%emt 00:00:01]} Bd5 {[%clk 00:00:05]} {[%emt 00:00:02]} 56. Ne8
{[%clk 00:00:10]} {[%emt 00:00:02]} Bg8 {[%clk 00:00:04]} {[%emt 00:00:03]} 57.
Nf6 {[%clk 00:00:11]} {[%emt 00:00:02]} Bf7 {[%clk 00:00:03]} {[%emt 00:00:03]}
58. Nxh7 {[%clk 00:00:12]} {[%emt 00:00:01]} a5 {[%clk 00:00:04]} 59. bxa5+
{[%clk 00:00:12]} {[%emt 00:00:02]} Kxa5 60. Kd4 {[%clk 00:00:14]} Kb4 {[%clk
00:00:07]} {[%emt 00:00:01]} 61. Ke5 {[%clk 00:00:15]} {[%emt 00:00:01]} Kc5
{[%clk 00:00:09]} 62. Kf6 {[%clk 00:00:16]} Be8 {[%clk 00:00:10]} 63. Nf8
{[%clk 00:00:17]} {[%emt 00:00:01]} Kd5 {[%emt 00:00:13]} 1-0

[Event "MČR v bleskovém šachu družstev 2019"]
[Site "Teplice, Czech Republic"]
[Date "2019.09.14"]
[Round "12.12"]
[White "Janocko, Petr"]
[Black "Postupa, Pavel"]
[Result "1-0"]
[TimeControl "3 mim. + 2 s"]
[WhiteFideId "320099"]
[BlackFideId "326410"]
[WhiteElo "2067"]
[BlackElo "2184"]

1. d4 {[%clk 00:03:03]} Nf6 {[%clk 00:03:03]} {[%emt 00:00:01]} 2. c4 {[%clk
00:03:04]} g6 {[%clk 00:03:05]} 3. Nc3 {[%clk 00:03:05]} {[%emt 00:00:02]} d5
{[%clk 00:03:06]} 4. g3 {[%clk 00:03:05]} {[%emt 00:00:02]} Bg7 {[%clk
00:03:07]} {[%emt 00:00:01]} 5. Nf3 {[%clk 00:03:07]} O-O {[%clk 00:03:07]}
{[%emt 00:00:02]} 6. Bg2 {[%clk 00:03:08]} {[%emt 00:00:01]} dxc4 {[%clk
00:03:01]} {[%emt 00:00:07]} 7. O-O {[%clk 00:03:07]} {[%emt 00:00:03]} c6
{[%clk 00:03:02]} {[%emt 00:00:02]} 8. Ne5 {[%clk 00:03:07]} {[%emt 00:00:02]}
Nfd7 {[%clk 00:02:56]} {[%emt 00:00:08]} 9. Nxc4 {[%clk 00:03:08]} {[%emt
00:00:02]} Nb6 {[%clk 00:02:57]} 10. Nxb6 {[%clk 00:03:04]} {[%emt 00:00:06]}
axb6 {[%clk 00:02:58]} {[%emt 00:00:01]} 11. d5 {[%clk 00:03:03]} {[%emt
00:00:03]} cxd5 {[%clk 00:02:47]} {[%emt 00:00:13]} 12. Qxd5 {[%clk 00:02:52]}
{[%emt 00:00:13]} Nc6 {[%clk 00:02:45]} {[%emt 00:00:04]} 13. Rd1 {[%clk
00:02:48]} {[%emt 00:00:06]} Qxd5 {[%clk 00:02:38]} {[%emt 00:00:09]} 14. Nxd5
{[%clk 00:02:48]} {[%emt 00:00:03]} Be6 {[%clk 00:02:38]} {[%emt 00:00:02]} 15.
Nxb6 {[%clk 00:02:24]} {[%emt 00:00:26]} Rxa2 {[%clk 00:02:30]} {[%emt
00:00:10]} 16. Rxa2 {[%clk 00:02:19]} {[%emt 00:00:08]} Bxa2 {[%clk 00:02:30]}
17. Rd7 {[%clk 00:02:17]} {[%emt 00:00:03]} Nd4 {[%clk 00:01:52]} {[%emt
00:00:40]} 18. Bg5 {[%clk 00:01:58]} {[%emt 00:00:22]} Nxe2+ {[%emt 00:00:04]}
19. Kf1 Nd4 {[%clk 00:01:41]} {[%emt 00:00:11]} 20. Bxe7 {[%clk 00:01:54]}
{[%emt 00:00:08]} Re8 {[%clk 00:01:40]} {[%emt 00:00:03]} 21. Rxb7 {[%clk
00:01:37]} {[%emt 00:00:20]} Nf5 {[%clk 00:01:14]} {[%emt 00:00:27]} 22. Ba3
{[%clk 00:01:34]} {[%emt 00:00:05]} Rd8 {[%clk 00:01:14]} {[%emt 00:00:02]} 23.
Be4 {[%clk 00:01:27]} {[%emt 00:00:08]} Nd6 {[%clk 00:01:07]} {[%emt 00:00:11]}
24. Bxd6 {[%clk 00:01:22]} {[%emt 00:00:06]} Rxd6 {[%clk 00:01:02]} {[%emt
00:00:07]} 25. Nc8 {[%clk 00:01:01]} {[%emt 00:00:23]} Rd1+ {[%clk 00:01:00]}
{[%emt 00:00:04]} 26. Ke2 {[%clk 00:00:56]} {[%emt 00:00:07]} Rc1 {[%clk
00:00:58]} {[%emt 00:00:04]} 27. Nd6 {[%clk 00:00:49]} {[%emt 00:00:09]} Be5
{[%clk 00:00:56]} {[%emt 00:00:05]} 28. Rb8+ {[%clk 00:00:42]} {[%emt
00:00:09]} Kg7 {[%clk 00:00:56]} {[%emt 00:00:02]} 29. Ne8+ {[%clk 00:00:43]}
Kh6 {[%clk 00:00:50]} {[%emt 00:00:08]} 30. Rb7 {[%clk 00:00:39]} {[%emt
00:00:05]} Bc4+ {[%clk 00:00:48]} {[%emt 00:00:04]} 31. Kd2 {[%clk 00:00:37]}
{[%emt 00:00:04]} Rf1 {[%clk 00:00:48]} {[%emt 00:00:02]} 32. f4 {[%clk
00:00:32]} {[%emt 00:00:07]} Bd4 {[%clk 00:00:38]} {[%emt 00:00:12]} 33. g4
{[%clk 00:00:29]} {[%emt 00:00:04]} Rxf4 {[%clk 00:00:33]} {[%emt 00:00:07]} 34.
Nd6 {[%clk 00:00:14]} {[%emt 00:00:17]} Be6 {[%clk 00:00:28]} {[%emt 00:00:08]}
35. h3 {[%clk 00:00:15]} {[%emt 00:00:02]} Rf2+ {[%clk 00:00:28]} {[%emt
00:00:01]} 36. Kd3 {[%clk 00:00:16]} Bxb2 {[%clk 00:00:27]} {[%emt 00:00:03]}
37. h4 {[%clk 00:00:14]} {[%emt 00:00:04]} Be5 {[%clk 00:00:25]} {[%emt
00:00:04]} 38. Ke3 {[%clk 00:00:12]} {[%emt 00:00:04]} Rh2 {[%clk 00:00:20]}
{[%emt 00:00:07]} 39. Nxf7+ {[%clk 00:00:13]} {[%emt 00:00:01]} Bxf7 {[%clk
00:00:19]} {[%emt 00:00:03]} 40. Rxf7 {[%clk 00:00:13]} {[%emt 00:00:03]} Rxh4
{[%clk 00:00:20]} {[%emt 00:00:01]} 41. Kf3 {[%clk 00:00:14]} Rh3+ {[%clk
00:00:21]} {[%emt 00:00:02]} 42. Kf2 {[%clk 00:00:15]} {[%emt 00:00:01]} Bd4+
{[%clk 00:00:21]} {[%emt 00:00:01]} 43. Kg2 {[%clk 00:00:15]} {[%emt 00:00:01]}
Re3 {[%clk 00:00:22]} {[%emt 00:00:02]} 44. Bf3 {[%clk 00:00:17]} Ra3 {[%clk
00:00:21]} {[%emt 00:00:03]} 45. Kg3 {[%clk 00:00:18]} {[%emt 00:00:01]} Be5+
{[%clk 00:00:21]} 46. Kh4 {[%clk 00:00:18]} {[%emt 00:00:02]} g5+ {[%clk
00:00:20]} {[%emt 00:00:03]} 47. Kh3 {[%clk 00:00:17]} {[%emt 00:00:03]} Kg6
{[%clk 00:00:21]} 48. Rf5 {[%clk 00:00:18]} {[%emt 00:00:01]} Bf4 {[%clk
00:00:22]} {[%emt 00:00:02]} 49. Kg2 {[%clk 00:00:20]} Ra2+ {[%clk 00:00:22]}
{[%emt 00:00:01]} 50. Kf1 {[%clk 00:00:21]} {[%emt 00:00:01]} Bg3 {[%clk
00:00:22]} {[%emt 00:00:02]} 51. Be4 {[%clk 00:00:22]} Kh6 {[%clk 00:00:21]}
{[%emt 00:00:04]} 52. Rf7 {[%clk 00:00:22]} {[%emt 00:00:02]} Rf2+ {[%clk
00:00:06]} {[%emt 00:00:16]} 53. Rxf2 {[%clk 00:00:23]} {[%emt 00:00:01]} Bxf2
{[%clk 00:00:07]} 54. Kxf2 {[%clk 00:00:24]} Kg7 {[%clk 00:00:08]} {[%emt
00:00:01]} 55. Kf3 {[%clk 00:00:20]} {[%emt 00:00:06]} h6 {[%clk 00:00:09]}
{[%emt 00:00:02]} 56. Bc6 {[%clk 00:00:20]} {[%emt 00:00:01]} Kf6 {[%clk
00:00:09]} {[%emt 00:00:02]} 57. Be8 {[%clk 00:00:21]} {[%emt 00:00:01]} Ke5
{[%clk 00:00:09]} {[%emt 00:00:02]} 58. Bh5 {[%clk 00:00:22]} {[%emt 00:00:01]}
Kd4 {[%clk 00:00:10]} 59. Ke2 {[%clk 00:00:24]} {[%emt 00:00:01]} Ke4 {[%clk
00:00:11]} 60. Kd2 {[%clk 00:00:25]} Kd4 {[%clk 00:00:13]} {[%emt 00:00:01]} 61.
Kc2 {[%clk 00:00:26]} Kc4 {[%clk 00:00:12]} {[%emt 00:00:03]} 62. Bg6 {[%clk
00:00:27]} Kd4 {[%clk 00:00:11]} {[%emt 00:00:03]} 63. Kb3 {[%clk 00:00:28]}
Kc5 {[%clk 00:00:10]} {[%emt 00:00:03]} 64. Kc3 {[%clk 00:00:30]} Kd5 {[%clk
00:00:11]} 65. Kd3 {[%clk 00:00:31]} {[%emt 00:00:01]} Ke5 {[%clk 00:00:12]}
{[%emt 00:00:01]} 66. Bh5 {[%clk 00:00:32]} Kf6 {[%clk 00:00:13]} {[%emt
00:00:01]} 67. Kd4 {[%clk 00:00:33]} Ke6 {[%clk 00:00:12]} {[%emt 00:00:02]} 68.
Ke4 {[%clk 00:00:35]} {[%emt 00:00:01]} Kf6 {[%clk 00:00:12]} {[%emt 00:00:02]}
69. Kd5 {[%clk 00:00:36]} {[%emt 00:00:01]} Ke7 {[%clk 00:00:13]} {[%emt
00:00:01]} 70. Ke5 {[%clk 00:00:37]} Kf8 {[%clk 00:00:13]} {[%emt 00:00:01]} 71.
Kf6 {[%clk 00:00:38]} {[%emt 00:00:01]} 1-0

[Event "MČR v bleskovém šachu družstev 2019"]
[Site "Teplice, Czech Republic"]
[Date "2019.09.14"]
[Round "12.15"]
[White "Vrbata, Zbynek"]
[Black "Marsalek, Zdenek"]
[Result "1/2-1/2"]
[TimeControl "3 mim. + 2 s"]
[WhiteTitle "FM"]
[WhiteFideId "301256"]
[WhiteElo "2324"]
[BlackElo "2272"]

1. f4 {[%emt 00:02:24]} c5 {[%emt 00:00:02]} 2. Nf3 {[%emt 00:00:02]} Nc6 3. g3
{[%emt 00:00:04]} g6 4. Bg2 {[%emt 00:00:01]} Bg7 5. O-O {[%emt 00:00:01]} e6
{[%emt 00:00:01]} 6. e4 {[%emt 00:00:10]} Nge7 {[%emt 00:00:06]} 7. d3 {[%emt
00:00:13]} d6 {[%emt 00:00:04]} 8. Nc3 {[%emt 00:00:04]} O-O {[%emt 00:00:03]}
9. Be3 {[%emt 00:00:03]} Nd4 {[%emt 00:00:01]} 10. Qd2 {[%emt 00:00:04]} Bd7
{[%emt 00:00:03]} 11. Rae1 {[%emt 00:00:08]} Rb8 {[%emt 00:00:02]} 12. Nd1
{[%emt 00:00:11]} b5 {[%emt 00:00:03]} 13. c3 {[%emt 00:00:03]} Nxf3+ {[%emt
00:00:02]} 14. Bxf3 {[%emt 00:00:02]} b4 {[%emt 00:00:05]} 15. e5 {[%emt
00:00:19]} Nf5 {[%emt 00:00:35]} 16. Bf2 {[%emt 00:00:06]} dxe5 {[%emt
00:00:11]} 17. fxe5 {[%emt 00:00:06]} Qa5 {[%emt 00:00:07]} 18. g4 {[%emt
00:00:14]} Ne7 {[%emt 00:00:02]} 19. Ne3 Bb5 {[%emt 00:00:09]} 20. g5 {[%emt
00:00:10]} Rfd8 {[%emt 00:00:04]} 21. c4 {[%emt 00:00:07]} Bc6 {[%emt
00:00:09]} 22. Bxc6 {[%emt 00:00:01]} Nxc6 23. Ng4 {[%emt 00:00:20]} Nd4 {[%emt
00:00:03]} 24. Bxd4 {[%emt 00:00:10]} Rxd4 {[%emt 00:00:02]} 25. h3 Qd8 {[%emt
00:00:05]} 26. Rf3 {[%emt 00:00:07]} Rb7 {[%emt 00:00:06]} 27. Ref1 {[%emt
00:00:05]} Rxc4 {[%emt 00:00:04]} 28. Qf2 {[%emt 00:00:04]} Rxg4+ {[%emt
00:00:08]} 29. hxg4 {[%emt 00:00:01]} Bxe5 {[%emt 00:00:07]} 30. Qg2 {[%emt
00:00:22]} Qxg5 {[%emt 00:00:05]} 31. Kh1 {[%emt 00:00:11]} Rd7 {[%emt
00:00:02]} 32. b3 {[%emt 00:00:05]} a5 {[%emt 00:00:07]} 33. Qh3 {[%emt
00:00:02]} f5 {[%emt 00:00:11]} 34. gxf5 {[%emt 00:00:02]} exf5 35. Rxf5 {[%emt
00:00:06]} gxf5 {[%emt 00:00:08]} 36. Rg1 Rg7 {[%emt 00:00:02]} 37. Rxg5 {[%emt
00:00:01]} Rxg5 38. Qf3 {[%emt 00:00:01]} Kg7 {[%emt 00:00:11]} 39. Qd5 {[%emt
00:00:11]} Bd4 {[%emt 00:00:01]} 40. Qd7+ {[%emt 00:00:03]} Kg6 {[%emt
00:00:02]} 41. Qe8+ {[%emt 00:00:01]} Kh6 {[%emt 00:00:02]} 42. Qe6+ {[%emt
00:00:04]} Kh5 {[%emt 00:00:06]} 43. Qe2+ {[%emt 00:00:01]} Rg4 {[%emt
00:00:03]} 44. Qe8+ {[%emt 00:00:02]} Kh4 {[%emt 00:00:07]} 45. Qe1+ {[%emt
00:00:03]} Kg5 {[%emt 00:00:05]} 46. Qe7+ Kf4 {[%emt 00:00:02]} 47. Qxh7 {[%emt
00:00:03]} Rg1+ {[%emt 00:00:05]} 48. Kh2 {[%emt 00:00:01]} Rg4 {[%emt
00:00:01]} 49. Qe7 {[%emt 00:00:05]} Bf2 {[%emt 00:00:04]} 50. Qd6+ {[%emt
00:00:02]} Kf3 {[%emt 00:00:03]} 51. Qd5+ {[%emt 00:00:02]} Kf4 {[%emt
00:00:02]} 52. Qd6+ {[%emt 00:00:02]} Kf3 {[%emt 00:00:25]} 1/2-1/2